fUST/lending_fUST_20240821
["ID","MTS","AMOUNT","RATE_DAILY","PERIOD"]
[335467592,1724244640820,-1000.0,0.00029,29]
[335467593,1724244640831,-150.112233,0.000291,5]
[335467594,1724244640842,-700.0,0.00029114,2]
[335467595,1724244640852,-150.0,0.00029147,5]
[335467596,1724244640863,-1086.7934524,0.00029193,2]
[335467597,1724244640873,-500.0,0.00029565,2]
[335467598,1724244640883,-150.112233,0.000296,10]
[335467599,1724244640893,-500.0,0.00029641,2]
[335467600,1724244640902,-300.0241823,0.00029695,5]
[335467601,1724244640912,-556.0,0.00029709,2]
[335467602,1724244640921,-151.0,0.00029709,2]
[335467603,1724244640931,-5041.43498642,0.00029785,2]
[335467604,1724244640942,-1086.7934524,0.00029907,2]
[335467605,1724244640952,-4496.82779985,0.00029964,2]
[335467606,1724244640962,-634.42098133,0.00029968,2]
[335467607,1724244640972,-5041.43498642,0.00029978,2]
[335467608,1724244640981,-1904.76317886,0.0002998,4]
[335467609,1724244640991,-196.245603,0.0002999,7]
[335467610,1724244641001,-196.245603,0.0002999,7]
[335467611,1724244641010,-183.601852,0.0002999,7]
[335467612,1724244641021,-183.601852,0.0002999,7]
[335467613,1724244641030,-20000.0,0.0003,20]
[335467614,1724244641039,-178.72751622,0.0003,5]
[335467615,1724244641049,-300.0,0.0003,2]
[335467616,1724244641058,-151.0,0.0003,120]
[335467617,1724244641068,-639.0,0.0003,120]
[335467618,1724244641078,-1000.0,0.0003,30]
[335467619,1724244641087,-513.03,0.0003,7]
[335467620,1724244641097,-504.34442286,0.0003,2]
[335467621,1724244641106,-700.0,0.00030001,7]
[335467622,1724244641386,-1904.76317886,0.00030083,4]
[335467623,1724244641396,-151.0,0.00030084,7]
[335467624,1724244641406,-151.0,0.00030084,7]
[335467625,1724244641416,-151.0,0.00030084,7]
[335467626,1724244641432,-151.0,0.00030084,7]
[335467627,1724244641449,-151.0,0.00030084,7]
[335467628,1724244641461,-151.0,0.00030084,7]
[335467629,1724244641471,-151.0,0.00030084,7]
[335467630,1724244641481,-151.0,0.00030084,7]
[335467631,1724244641491,-151.0,0.00030093,7]
[335467632,1724244641501,-426.03,0.000301,14]
[335467633,1724244641511,-500.0,0.00030104,7]
[335467634,1724244641520,-3066.03315259,0.000302,2]
[335467635,1724244641530,-5041.43498642,0.00030217,2]
[335467636,1724244641540,-504.34442286,0.000303,2]
[335467637,1724244641551,-700.0,0.00030318,7]
[335467638,1724244641560,-1900.0,0.00030394,7]
[335467639,1724244641571,-150.112233,0.000304,7]
[335467640,1724244641580,-5387.93,0.000304,14]
[335467641,1724244641590,-500.0,0.00030407,7]
[335467642,1724244641600,-5041.43498642,0.00030424,2]
[335467643,1724244641610,-4500.0,0.00030443,4]
[335467644,1724244641620,-150.112233,0.000305,5]
[335467645,1724244641629,-504.34442286,0.000306,2]
[335467646,1724244641640,-1086.7934524,0.0003062,2]
[335467647,1724244641649,-314.55,0.000307,31]
[335467648,1724244641659,-314.55,0.000307,31]
[335467649,1724244641668,-314.55,0.000307,31]
[335467650,1724244641678,-314.55,0.000307,31]
[335467651,1724244641688,-314.55,0.000307,31]
[335467652,1724244641706,-314.55,0.000307,31]
[335467653,1724244641715,-314.55,0.000307,31]
[335467654,1724244641724,-314.55,0.000307,31]
[335467655,1724244641733,-314.55,0.000307,31]
[335467656,1724244641743,-314.55,0.000307,31]
[335467657,1724244641752,-314.55,0.000307,31]
[335467658,1724244641761,-314.55,0.000307,31]
[335467659,1724244641770,-314.55,0.000307,31]
[335467660,1724244641781,-314.55,0.000307,31]
[335467661,1724244641792,-314.55,0.000307,31]
[335467662,1724244641802,-314.55,0.000307,31]
[335467663,1724244641812,-314.55,0.000307,31]
[335467664,1724244641822,-314.55,0.000307,31]
[335467665,1724244641831,-314.55,0.000307,31]
[335467666,1724244641841,-314.55,0.000307,31]
[335467667,1724244641851,-314.55,0.000307,31]
[335467668,1724244641861,-314.55,0.000307,31]
[335467669,1724244641870,-314.55,0.000307,31]
[335467670,1724244641881,-314.55,0.000307,31]
[335467671,1724244641895,-85746.60764581,0.00030706,15]
[335467672,1724244641905,-1300.0,0.00030706,7]
[335467673,1724244641915,-500.0,0.00030714,7]
[335467674,1724244641925,-500.0,0.00030741,7]
[335467675,1724244641935,-556.0,0.00030753,3]
[335467676,1724244641946,-151.0,0.00030753,3]
[335467677,1724244641955,-5041.43498642,0.00030763,2]
[335467678,1724244641965,-150.112233,0.000308,9]
[335467679,1724244641975,-504.34442286,0.000309,2]
[335467680,1724244641985,-1904.76317886,0.00030988,4]
[335467681,1724244641994,-20000.0,0.00031,22]
[335467682,1724244642004,-72671.00497509,0.00031,120]
[335467683,1724244642014,-300.0,0.00031,4]
[335467684,1724244642024,-1000.0,0.00031,31]
[335467685,1724244642034,-513.03,0.00031,7]
[335467686,1724244642044,-5041.43498642,0.00031092,2]
[335467687,1724244642054,-504.34442286,0.000312,2]
[335467688,1724244642064,-700.0,0.00031311,7]
[335467689,1724244642074,-1086.7934524,0.00031333,2]
[335467690,1724244642083,-5041.43498642,0.00031394,2]
[335467691,1724244642093,-426.03,0.000314,14]
[335467692,1724244642103,-150.0,0.00031422,2]
[335467693,1724244642112,-521.0,0.00031422,2]
[335467694,1724244642122,-1415.0,0.00031422,2]
[335467695,1724244642131,-150.0,0.00031422,2]
[335467696,1724244642141,-1300.0,0.00031449,7]
[335467697,1724244642150,-1904.76317886,0.00031464,4]
[335467698,1724244642160,-603.59006938,0.000315,2]
[335467699,1724244642170,-5387.93,0.000315,14]
[335467700,1724244642180,-5041.43498643,0.00031552,2]
[335467701,1724244642190,-1300.0,0.00031636,7]
[335467702,1724244642200,-150.112233,0.000317,8]
[335467703,1724244642210,-556.0,0.00031798,3]
[335467704,1724244642221,-151.0,0.00031798,3]
[335467705,1724244642231,-500.0,0.00031928,7]
[335467706,1724244642241,-500.0,0.00031964,7]
[335467707,1724244642250,-3809.52635772,0.00031989,4]
[335467708,1724244642261,-1904.76317886,0.0003199,4]
[335467709,1724244642271,-69360.08242591,0.00031999,2]
[335467710,1724244642280,-151.0,0.00031999,7]
[335467711,1724244642290,-151.0,0.00031999,7]
[335467712,1724244642300,-151.0,0.00031999,7]
[335467713,1724244642310,-151.0,0.00031999,7]
[335467714,1724244642321,-151.0,0.00031999,7]
[335467715,1724244642332,-151.0,0.00031999,7]
[335467716,1724244642343,-151.0,0.00031999,7]
[335467717,1724244642356,-151.0,0.00031999,7]
[335467718,1724244642365,-196.245603,0.00031999,7]
[335467719,1724244642375,-196.245603,0.00031999,7]
[335467720,1724244642385,-183.601852,0.00031999,7]
[335467721,1724244642395,-183.601852,0.00031999,7]
[335467722,1724244642404,-151.0,0.00031999,7]
[335467723,1724244642414,-151.0,0.00031999,7]
[335467724,1724244642423,-151.0,0.00031999,7]
[335467725,1724244642432,-235.58561,0.00031999,7]
[335467726,1724244642443,-20000.0,0.00032,24]
[335467727,1724244642453,-1000.0,0.00032,32]
[335467728,1724244642462,-150.112233,0.00032,7]
[335467729,1724244642473,-300.0,0.00032,5]
[335467730,1724244642482,-500.0,0.00032,120]
[335467731,1724244642492,-84432.116611,0.00032,5]
[335467732,1724244642502,-151.0,0.00032,7]
[335467733,1724244642511,-232.787578,0.00032,7]
[335467734,1724244642520,-151.0,0.00032,7]
[335467735,1724244642530,-151.0,0.00032,7]
[335467736,1724244642540,-153.316594,0.00032,7]
[335467737,1724244642549,-151.0,0.00032,7]
[335467738,1724244642559,-151.0,0.00032,7]
[335467739,1724244642568,-151.0,0.00032,7]
[335467740,1724244642578,-151.0,0.00032,7]
[335467741,1724244642587,-151.0,0.00032,7]
[335467742,1724244642597,-151.0,0.00032,7]
[335467743,1724244642606,-151.0,0.00032,7]
[335467744,1724244642615,-153.109168,0.00032,7]
[335467745,1724244642625,-1300.0,0.00032006,7]
[335467746,1724244642634,-1086.7934524,0.00032047,2]
[335467747,1724244642643,-513.03,0.000321,7]
[335467748,1724244642653,-153.0,0.00032167,2]
[335467749,1724244642663,-153.0,0.00032167,2]
[335467750,1724244642673,-153.0,0.00032167,2]
[335467751,1724244642682,-153.0,0.00032167,2]
[335467752,1724244642694,-2800.0,0.00032249,4]
[335467753,1724244642704,-182.754323,0.00032265,2]
[335467754,1724244642714,-180.034489,0.00032265,2]
[335467755,1724244642725,-181.048875,0.00032265,2]
[335467756,1724244642735,-180.064656,0.00032265,2]
[335467757,1724244642745,-168.423271,0.00032265,2]
[335467758,1724244642756,-500.0,0.00032381,7]
[335467759,1724244642766,-500.0,0.00032443,7]
[335467760,1724244642776,-3066.03315259,0.0003255,2]
[335467761,1724244642785,-150.112235,0.000326,7]
[335467762,1724244642795,-5387.93,0.000326,14]
[335467763,1724244642805,-181.048875,0.00032669,2]
[335467764,1724244642815,-180.064656,0.00032669,2]
[335467765,1724244642825,-314.55,0.000327,31]
[335467767,1724244642836,-314.55,0.000327,31]
[335467769,1724244642847,-314.55,0.000327,31]
[335467770,1724244642858,-314.55,0.000327,31]
[335467772,1724244642868,-314.55,0.000327,31]
[335467773,1724244642878,-314.55,0.000327,31]
[335467774,1724244642888,-314.55,0.000327,31]
[335467775,1724244642898,-314.55,0.000327,31]
[335467776,1724244642908,-314.55,0.000327,31]
[335467777,1724244642917,-314.55,0.000327,31]
[335467778,1724244642927,-314.55,0.000327,31]
[335467779,1724244642936,-314.55,0.000327,31]
[335467780,1724244642947,-314.55,0.000327,31]
[335467781,1724244642957,-314.55,0.000327,31]
[335467782,1724244642967,-314.55,0.000327,31]
[335467783,1724244642977,-314.55,0.000327,31]
[335467784,1724244642986,-314.55,0.000327,31]
[335467785,1724244642996,-314.55,0.000327,31]
[335467786,1724244643006,-314.55,0.000327,31]
[335467787,1724244643015,-314.55,0.000327,31]
[335467788,1724244643025,-314.55,0.000327,31]
[335467789,1724244643036,-314.55,0.000327,31]
[335467790,1724244643046,-314.55,0.000327,31]
[335467791,1724244643056,-314.55,0.000327,31]
[335467792,1724244643066,-6617.71510224,0.00032715,60]
[335467793,1724244643076,-1086.7934524,0.0003276,2]
[335467794,1724244643086,-153.0,0.00032768,2]
[335467795,1724244643095,-153.0,0.00032768,2]
[335467796,1724244643105,-153.0,0.00032768,2]
[335467797,1724244643115,-151.0,0.0003277,7]
[335467798,1724244643125,-151.0,0.00032771,7]
[335467799,1724244643135,-154.058903,0.00032771,7]
[335467800,1724244643146,-556.0,0.00032842,4]
[335467801,1724244643155,-151.0,0.00032842,4]
[335467802,1724244643166,-1000.0,0.00032876,2]
[335467803,1724244643175,-1761.59,0.00032876,21]
[335467804,1724244643185,-154.481647,0.00032895,7]
[335467805,1724244643196,-151.0,0.00032895,7]
[335467806,1724244643206,-1761.59,0.00032931,21]
[335467807,1724244643425,-1300.0,0.00032952,7]
[335467808,1724244643436,-500.0,0.00032957,7]
[335467810,1724244643446,-196.245603,0.00032986,7]
[335467813,1724244643464,-196.245603,0.00032986,7]
[335467815,1724244643476,-1761.59,0.00032986,21]
[335467816,1724244643487,-183.601852,0.00032986,7]
[335467817,1724244643496,-183.601852,0.00032986,7]
[335467818,1724244643507,-153.0,0.00032994,2]
[335467819,1724244643517,-153.0,0.00032994,2]
[335467820,1724244643527,-153.0,0.00032994,2]
[335467821,1724244643538,-153.0,0.00032994,2]
[335467822,1724244643549,-153.0,0.00032994,2]
[335467823,1724244643559,-153.0,0.00032994,2]
[335467825,1724244643570,-153.0,0.00032994,2]
[335467827,1724244643581,-153.0,0.00032994,2]
[335467828,1724244643591,-153.0,0.00032994,2]
[335467830,1724244643602,-153.0,0.00032994,2]
[335467831,1724244643612,-153.0,0.00032994,2]
[335467832,1724244643622,-153.0,0.00032994,2]
[335467833,1724244643632,-153.0,0.00032994,2]
[335467834,1724244643642,-153.0,0.00032994,2]
[335467835,1724244643652,-153.0,0.00032994,2]
[335467836,1724244643662,-153.0,0.00032994,2]
[335467837,1724244643673,-153.0,0.00032994,2]
[335467838,1724244643683,-232.787578,0.00032995,7]
[335467839,1724244643695,-151.0,0.00032995,7]
[335467840,1724244643705,-151.0,0.00032995,7]
[335467841,1724244643715,-151.0,0.00032995,7]
[335467842,1724244643725,-151.0,0.00032995,7]
[335467843,1724244643735,-151.0,0.00032995,7]
[335467844,1724244643746,-154.25959,0.00032995,7]
[335467845,1724244643756,-151.0,0.00032995,7]
[335467846,1724244643766,-151.0,0.00032995,7]
[335467847,1724244643776,-151.0,0.00032995,7]
[335467848,1724244643786,-151.0,0.00032995,7]
[335467849,1724244643796,-20000.0,0.00033,26]
[335467850,1724244643806,-1000.0,0.00033,33]
[335467851,1724244643816,-300.0,0.00033,7]
[335467852,1724244643826,-500.16365279,0.00033,7]
[335467853,1724244643836,-172.222689,0.00033,7]
[335467854,1724244643846,-151.0,0.00033,7]
[335467855,1724244643855,-151.0,0.00033,7]
[335467856,1724244643865,-166.29426,0.00033,7]
[335467857,1724244643875,-1900.0,0.00033025,7]
[335467858,1724244643885,-1761.59,0.00033041,21]
[335467859,1724244643895,-182.754323,0.00033072,2]
[335467860,1724244643904,-168.423271,0.00033072,2]
[335467861,1724244643914,-181.048875,0.00033072,2]
[335467862,1724244643924,-180.064656,0.00033072,2]
[335467863,1724244643933,-307.1663741,0.00033076,2]
[335467864,1724244643944,-1761.59,0.00033095,21]
[335467865,1724244643954,-513.03,0.000331,30]
[335467866,1724244643964,-1761.59,0.0003315,21]
[335467867,1724244643974,-151.0,0.00033205,7]
[335467868,1724244643984,-1761.59,0.00033205,21]
[335467869,1724244643993,-4496.82779985,0.00033215,2]
[335467870,1724244644003,-546.37718041,0.00033227,7]
[335467871,1724244644013,-155.82579699,0.0003325,3]
[335467872,1724244644023,-1761.59,0.0003326,21]
[335467873,1724244644033,-151.0,0.00033315,7]
[335467874,1724244644043,-1761.59,0.00033315,21]
[335467875,1724244644052,-1300.0,0.00033346,7]
[335467876,1724244644063,-1761.59,0.00033369,21]
[335467877,1724244644072,-1300.0,0.000334,7]
[335467878,1724244644082,-1000.0,0.00033424,2]
[335467879,1724244644092,-1761.59,0.00033424,21]
[335467880,1724244644101,-1086.7934524,0.00033473,2]
[335467881,1724244644111,-181.048875,0.00033475,2]
[335467882,1724244644120,-180.064656,0.00033475,2]
[335467883,1724244644131,-1761.59,0.00033479,21]
[335467884,1724244644140,-150.112233,0.000335,6]
[335467885,1724244644150,-1900.0,0.00033503,7]
[335467886,1724244644159,-1761.59,0.00033534,21]
[335467887,1724244644169,-1900.0,0.00033543,7]
[335467888,1724244644178,-700.0,0.00033558,7]
[335467889,1724244644188,-1761.59,0.00033589,21]
[335467890,1724244644199,-600.0,0.00033599,2]
[335467891,1724244644209,-5387.93,0.000336,14]
[335467892,1724244644223,-298.529722,0.00033626,2]
[335467893,1724244644232,-1761.59,0.00033643,21]
[335467894,1724244644242,-500.0,0.00033656,7]
[335467895,1724244644252,-499.3,0.00033688,7]
[335467896,1724244644262,-1761.59,0.00033698,21]
[335467897,1724244644272,-1761.59,0.00033753,21]
[335467898,1724244644282,-1761.59,0.00033808,21]
[335467899,1724244644291,-1761.59,0.00033863,21]
[335467900,1724244644301,-180.034489,0.00033879,2]
[335467901,1724244644313,-182.754323,0.00033879,2]
[335467902,1724244644323,-168.423271,0.00033879,2]
[335467903,1724244644335,-181.048875,0.00033879,2]
[335467904,1724244644346,-180.064656,0.00033879,2]
[335467905,1724244644358,-556.0,0.00033887,4]
[335467906,1724244644367,-151.0,0.00033887,4]
[335467907,1724244644378,-160.0,0.0003389,30]
[335467908,1724244644387,-150.0,0.00033899,2]
[335467909,1724244644397,-232.787578,0.000339,7]
[335467910,1724244644407,-151.0,0.000339,7]
[335467911,1724244644416,-1900.0,0.00033902,7]
[335467912,1724244644426,-1761.59,0.00033917,21]
[335467913,1724244644436,-600.0,0.00033949,2]
[335467914,1724244644447,-1000.0,0.00033972,2]
[335467915,1724244644457,-196.245603,0.00033972,7]
[335467916,1724244644467,-196.245603,0.00033972,7]
[335467917,1724244644476,-132.03651094,0.00033972,21]
[335467918,1724244644499,-1629.55348906,0.00033972,21]
[335467919,1724244644508,-183.601852,0.00033972,7]
[335467920,1724244644518,-183.601852,0.00033972,7]
[335467921,1724244644531,-20000.0,0.00034,28]
[335467922,1724244644541,-1000.0,0.00034,34]
[335467923,1724244644551,-998.0382,0.00034,30]
[335467924,1724244644560,-500.0,0.00034,120]
[335467925,1724244644569,-500.0,0.00034,120]
[335467926,1724244644578,-500.0,0.00034,120]
[335467927,1724244644587,-500.0,0.00034,120]
[335467928,1724244644597,-500.0,0.00034,120]
[335467929,1724244644607,-500.0,0.00034,120]
[335467930,1724244644616,-500.0,0.00034,120]
[335467931,1724244644626,-500.0,0.00034,120]
[335467932,1724244644636,-500.0,0.00034,120]
[335467933,1724244644646,-500.0,0.00034,120]
[335467934,1724244644655,-500.0,0.00034,120]
[335467935,1724244644664,-500.0,0.00034,120]
[335467936,1724244644674,-500.0,0.00034,120]
[335467937,1724244644683,-481.99,0.00034,120]
[335467938,1724244644695,-500.0,0.00034,120]
[335467939,1724244644704,-500.0,0.00034,120]
[335467940,1724244644713,-500.0,0.00034,120]
[335467941,1724244644722,-500.0,0.00034,120]
[335467942,1724244644732,-300.0,0.00034,9]
[335467943,1724244644741,-500.0,0.00034,7]
[335467944,1724244644752,-120351.12168711,0.00034,30]
[335467945,1724244644762,-238.73,0.00034,120]
[335467946,1724244644771,-142104.93038225,0.00034,2]
[335467947,1724244644781,-232.787578,0.00034,7]
[335467948,1724244644790,-151.0,0.00034,7]
[335467949,1724244644799,-151.0,0.00034,7]
[335467950,1724244644809,-151.0,0.00034,7]
[335467951,1724244644819,-151.0,0.00034,7]
[335467952,1724244644829,-214.37944,0.00034,7]
[335467953,1724244644838,-151.0,0.00034,7]
[335467954,1724244644848,-151.0,0.00034,7]
[335467955,1724244644857,-151.0,0.00034,7]
[335467956,1724244644867,-151.0,0.00034,7]
[335467957,1724244644876,-196.245603,0.00034,7]
[335467958,1724244644885,-196.245603,0.00034,7]
[335467959,1724244644895,-183.601852,0.00034,7]
[335467960,1724244644906,-183.601852,0.00034,7]
[335467961,1724244644915,-151.0,0.00034,7]
[335467962,1724244644925,-151.0,0.00034,7]
[335467963,1724244644935,-271.66030088,0.00034,2]
[335467964,1724244644956,-500.0,0.00034002,7]
[335467965,1724244644965,-1761.59,0.00034027,21]
[335467966,1724244644976,-500.0,0.00034077,7]
[335467967,1724244644986,-1761.59,0.00034082,21]
[335467968,1724244644995,-1761.59,0.00034136,21]
[335467969,1724244645004,-700.0,0.0003415,7]
[335467970,1724244645013,-1086.7934524,0.00034187,2]
[335467971,1724244645022,-500.0,0.00034246,21]
[335467972,1724244645031,-302.90068,0.00034247,2]
[335467973,1724244645041,-1300.0,0.00034253,7]
[335467974,1724244645051,-600.0,0.00034299,2]
[335467975,1724244645061,-500.0,0.00034313,7]
[335467976,1724244645070,-150.0,0.00034422,2]
[335467977,1724244645079,-521.0,0.00034422,2]
[335467978,1724244645089,-1415.0,0.00034422,2]
[335467979,1724244645098,-700.0,0.0003448,7]
[335467980,1724244645107,-151.0,0.000345,7]
[335467981,1724244645117,-458.495,0.000345,21]
[335467982,1724244645126,-10943.587,0.000345,120]
[335467983,1724244645135,-10943.588,0.000345,120]
[335467984,1724244645145,-10943.588,0.000345,120]
[335467985,1724244645155,-4824.36626821,0.000345,120]
[335467986,1724244645168,-6119.22173179,0.000345,120]
[335467987,1724244645179,-10943.588,0.000345,120]
[335467988,1724244645188,-1000.0,0.00034561,7]
[335467989,1724244645198,-3452.97547408,0.00034616,7]
[335467990,1724244645208,-152.83059501,0.00034734,2]
[335467991,1724244645220,-5402.44818231,0.00034734,2]
[335467992,1724244645229,-207.6241733,0.00034769,2]
[335467993,1724244645239,-207.6241733,0.00034769,2]
[335467994,1724244645248,-189.7923917,0.00034769,2]
[335467995,1724244645258,-153.0,0.00034769,2]
[335467996,1724244645268,-195.76367452,0.000348,21]
[335467997,1724244645279,-11835.07140852,0.000348,21]
[335467998,1724244645289,-150.112233,0.000348,5]
[335467999,1724244645301,-3000.0,0.000348,21]
[335468000,1724244645310,-314.55,0.000348,31]
[335468001,1724244645320,-314.55,0.000348,31]
[335468002,1724244645329,-314.55,0.000348,31]
[335468003,1724244645339,-314.55,0.000348,31]
[335468004,1724244645348,-314.55,0.000348,31]
[335468005,1724244645358,-314.55,0.000348,31]
[335468006,1724244645368,-314.55,0.000348,31]
[335468007,1724244645378,-314.55,0.000348,31]
[335468008,1724244645388,-314.55,0.000348,31]
[335468009,1724244645398,-314.55,0.000348,31]
[335468010,1724244645408,-314.55,0.000348,31]
[335468011,1724244645418,-314.55,0.000348,31]
[335468012,1724244645428,-314.55,0.000348,31]
[335468013,1724244645438,-314.55,0.000348,31]
[335468014,1724244645452,-314.55,0.000348,31]
[335468015,1724244645463,-314.55,0.000348,31]
[335468016,1724244645472,-3000.0,0.0003481,21]
[335468017,1724244645482,-4753.32962802,0.0003482,7]
[335468018,1724244645491,-3000.0,0.0003482,21]
[335468019,1724244645502,-409.0504316,0.0003483,2]
[335468020,1724244645512,-3000.0,0.0003483,21]
[335468021,1724244645522,-3000.0,0.0003484,21]
[335468022,1724244645532,-160.0,0.00034848,10]
[335468023,1724244645543,-160.0,0.00034848,10]
[335468024,1724244645552,-500.0,0.00034849,3]
[335468025,1724244645562,-10660.63567111,0.00034849,21]
[335468026,1724244645573,-500.0,0.00034849,21]
[335468027,1724244645582,-504.42175918,0.00034849,21]
[335468028,1724244645592,-20125.28,0.00034849,21]
[335468029,1724244645602,-500.0,0.00034849,21]
[335468030,1724244645612,-20125.28,0.00034849,21]
[335468031,1724244645622,-500.0,0.00034849,21]
[335468032,1724244645632,-9507.01469526,0.00034849,21]
[335468033,1724244645712,-882.99597685,0.00024662,2]
[335468034,1724244645948,-239.615,0.00031422,2]
[335468035,1724244645959,-16470.82430152,0.00032,15]
[335468036,1724244645969,-285.86,0.00033999,2]
[335468037,1724244645979,-285.86,0.00033999,2]
[335468038,1724244645988,-285.86,0.00033999,2]
[335468039,1724244645998,-285.86,0.00033999,2]
[335468040,1724244646008,-285.86,0.00033999,2]
[335468041,1724244646019,-285.86,0.00033999,2]
[335468042,1724244646028,-285.86,0.00033999,2]
[335468043,1724244646037,-10618.26530474,0.00034849,21]
[335468044,1724244646048,-500.0,0.00034849,21]
[335468045,1724244646058,-20125.28,0.00034849,21]
[335468046,1724244646068,-507.7,0.00034849,21]
[335468047,1724244646080,-20125.28,0.00034849,21]
[335468048,1724244646089,-500.0,0.00034849,21]
[335468049,1724244646101,-20125.28,0.00034849,21]
[335468050,1724244646111,-500.0,0.00034849,21]
[335468051,1724244646122,-20125.28,0.00034849,21]
[335468052,1724244646133,-500.0,0.00034849,21]
[335468053,1724244646144,-20125.28,0.00034849,21]
[335468054,1724244646156,-500.0,0.00034849,21]
[335468055,1724244646167,-20125.37493315,0.00034849,21]
[335468056,1724244646177,-500.0,0.00034849,21]
[335468057,1724244646187,-500.0,0.00034849,21]
[335468058,1724244646198,-500.0,0.00034849,21]
[335468059,1724244646209,-500.0,0.00034849,21]
[335468060,1724244646223,-500.0,0.00034849,21]
[335468061,1724244646233,-500.0,0.00034849,21]
[335468062,1724244646244,-500.0,0.00034849,21]
[335468063,1724244646254,-500.0,0.00034849,21]
[335468064,1724244646265,-500.0,0.00034849,21]
[335468065,1724244646275,-500.0,0.00034849,21]
[335468066,1724244646285,-500.0,0.00034849,21]
[335468067,1724244646295,-500.0,0.00034849,21]
[335468068,1724244646306,-634.2,0.00034849,21]
[335468069,1724244646316,-500.0,0.00034849,21]
[335468070,1724244646326,-500.0,0.00034849,21]
[335468071,1724244646337,-500.0,0.00034849,21]
[335468072,1724244646347,-500.0,0.00034849,21]
[335468073,1724244646357,-500.0,0.00034849,21]
[335468074,1724244646368,-500.0,0.00034849,21]
[335468075,1724244646378,-500.0,0.00034849,21]
[335468076,1724244646388,-566.78,0.00034849,21]
[335468077,1724244646398,-500.0,0.00034849,21]
[335468078,1724244646408,-500.0,0.00034849,21]
[335468079,1724244646418,-500.0,0.00034849,21]
[335468080,1724244646428,-500.0,0.00034849,21]
[335468081,1724244646438,-263.56,0.00034849,21]
[335468082,1724244646450,-500.0,0.00034849,21]
[335468083,1724244646461,-500.0,0.00034849,21]
[335468084,1724244646470,-500.0,0.00034849,21]
[335468085,1724244646480,-410.24252774,0.00034849,21]
[335468086,1724244646490,-505.63525513,0.00034849,21]
[335468087,1724244646500,-500.0,0.00034849,21]
[335468088,1724244646510,-1370.23,0.00034849,21]
[335468089,1724244646520,-1370.23,0.00034849,21]
[335468090,1724244646531,-1370.23,0.00034849,21]
[335468091,1724244646540,-1370.23,0.00034849,21]
[335468092,1724244646550,-1370.23,0.00034849,21]
[335468093,1724244646560,-500.0,0.00034849,21]
[335468094,1724244646570,-1370.23,0.00034849,21]
[335468095,1724244646579,-500.0,0.00034849,21]
[335468096,1724244646589,-1370.23,0.00034849,21]
[335468097,1724244646599,-500.0,0.00034849,21]
[335468098,1724244646608,-1370.23,0.00034849,21]
[335468099,1724244646618,-500.0,0.00034849,21]
[335468100,1724244646627,-1370.23,0.00034849,21]
[335468101,1724244646637,-1370.23,0.00034849,21]